bitfinex/quotes_SOLUSD_20251216
["timestamp","ask_amount","ask_price","bid_price","bid_amount"]
[1765880665050,13.0470912,126.93,126.91,0.21]
[1765880665229,13.7670912,126.93,126.9,11.50547971]
[1765880665436,13.7670912,126.93,126.91,0.21]
[1765880665838,0.72,126.93,126.91,0.21]
[1765880666045,4.11183843,126.95,126.91,0.21]
[1765880666241,4.11183843,126.95,126.92,7.87897888]
[1765880666552,0.65,126.94,126.92,7.87897888]
[1765880667951,2.86547971,126.94,126.92,7.87897888]
[1765880668155,0.65,126.93,126.92,7.87897888]
[1765880669655,0.65,126.93,126.91,27.57776452]
[1765880670065,0.65,126.94,126.91,27.78776452]
[1765880670731,4.11183843,126.95,126.93,0.21]
[1765880671055,4.81183843,126.95,126.93,0.21]
[1765880671371,4.81183843,126.95,126.92,0.21]
[1765880671527,0.7,126.95,126.92,0.21]
[1765880671731,0.7,126.95,126.93,7.87835815]
[1765880672067,4.81406244,126.97,126.94,0.21]
[1765880672235,0.7,126.97,126.94,0.21]
[1765880673560,0.7,126.97,126.95,7.87711697]
[1765880674254,0.66,126.96,126.95,7.87711697]
[1765880674450,0.66,126.97,126.95,7.87711697]
[1765880676945,0.66,126.95,126.94,7.87757175]
[1765880677258,5.13448292,126.95,126.94,7.87757175]
[1765880678444,0.66,126.95,126.94,7.87757175]
[1765880679142,4.47448292,126.96,126.93,27.57425352]
[1765880679342,0.66,126.96,126.93,27.78425352]
[1765880680059,19.69385731,126.98,126.95,4.68448292]
[1765880680247,4.77291439,126.99,126.96,0.21]
[1765880680557,0.66,126.98,126.95,4.68448292]
[1765880680943,0.66,126.98,126.95,22.20605704]
[1765880681458,17.82000559,126.99,126.96,27.77773786]
[1765880682160,17.16000559,126.99,126.96,27.56773786]
[1765880682334,17.82000559,126.99,126.96,27.56773786]
[1765880682657,17.82000559,126.99,126.96,32.25222078]
[1765880682859,13.7070912,126.99,126.96,40.89222078]
[1765880683677,13.7070912,126.99,126.96,36.41773786]
[1765880688169,0.66,126.99,126.96,36.41773786]
[1765880688466,0.66,126.99,126.97,0.21]
[1765880688762,0.66,126.99,126.98,7.87525594]
[1765880690667,0.66,127.0,126.98,7.87525594]
[1765880694573,5.13448292,127.0,126.98,7.87525594]
[1765880694779,0.66,126.99,126.97,69.77574585]
[1765880694986,0.66,126.98,126.97,69.77574585]
[1765880695285,5.13448292,126.98,126.97,61.9]
[1765880697289,0.66,126.98,126.97,61.9]
[1765880697584,5.13448292,126.98,126.97,61.9]
[1765880697756,0.66,126.98,126.97,61.9]
[1765880699565,0.66,126.98,126.97,69.77587619]
[1765880699769,0.66,126.98,126.97,7.87587619]
[1765880700163,0.66,126.98,126.96,7.87620924]
[1765880707587,0.65,126.99,126.97,0.21]
[1765880707898,0.65,126.99,126.96,27.77745057]
[1765880708094,0.65,126.99,126.96,27.56745057]
[1765880708286,0.65,126.99,126.97,0.21]
[1765880708483,0.65,126.99,126.96,27.56745057]
[1765880708869,0.65,126.99,126.96,27.77745057]
[1765880710383,5.12448292,126.99,126.96,27.77745057]
[1765880710571,0.65,126.98,126.96,27.77745057]
[1765880710778,0.65,126.98,126.96,7.87620924]
[1765880719098,0.65,126.97,126.96,7.87620924]
[1765880720388,0.65,126.98,126.96,7.87620924]
[1765880720769,4.11076479,126.99,126.98,7.87525594]
[1765880721399,4.76076479,126.99,126.98,7.87525594]
[1765880722692,4.76076479,126.99,126.97,7.87587619]
[1765880723296,0.65,126.98,126.97,7.87587619]
[1765880724885,0.65,126.98,126.96,7.87649653]
[1765880725389,5.12280434,126.98,126.96,7.87649653]
[1765880725697,0.65,126.97,126.96,7.87649653]
[1765880729902,0.65,126.97,126.95,7.87711697]
[1765880738728,3.51324137,126.97,126.95,7.87711697]
[1765880739022,0.65,126.97,126.95,7.87711697]
[1765880739204,3.51324137,126.97,126.95,7.87711697]
[1765880739404,0.71,126.96,126.94,7.87752419]
[1765880739604,2.86324137,126.98,126.94,27.57186797]
[1765880739820,0.71,126.98,126.95,0.21]
[1765880740015,0.71,126.98,126.94,36.42186797]
[1765880741020,0.71,126.98,126.94,36.21186797]
[1765880741201,0.71,126.98,126.95,0.21]
[1765880741521,0.71,126.98,126.94,36.42186797]
[1765880741718,0.71,126.98,126.94,36.21186797]
[1765880742031,0.71,126.98,126.94,36.42186797]
[1765880742519,3.57324137,126.98,126.94,36.42186797]
[1765880742813,0.71,126.97,126.94,36.42186797]
[1765880743015,4.82076479,126.99,126.95,0.21]
[1765880743223,13.0470912,126.98,126.95,0.21]
[1765880743524,4.11076479,126.99,126.97,0.21]
[1765880744315,0.71,127.01,126.98,0.21]
[1765880744714,4.82012344,127.01,126.98,8.85]
[1765880745623,4.82012344,127.01,126.99,7.87463579]
[1765880746718,4.11012344,127.01,126.99,8.08463579]
[1765880746910,4.82012344,127.01,126.99,8.08463579]
[1765880747516,4.11012344,127.01,126.99,8.08463579]
[1765880748018,4.11012344,127.01,127.0,0.21]
[1765880748524,0.71,127.04,127.01,0.21]
[1765880749301,13.7570912,127.04,127.01,0.21]
[1765880749715,13.0470912,127.04,127.01,0.21]
[1765880749926,0.71,127.03,127.01,8.08330827]
[1765880750622,15.91033257,127.04,127.01,8.08330827]
[1765880750826,16.62033257,127.04,127.01,8.08330827]
[1765880752728,0.71,127.02,127.0,7.8737035]
[1765880753023,0.71,127.02,127.0,78.3937035]
[1765880754120,0.71,127.03,127.0,78.6037035]
[1765880758534,0.71,127.03,127.0,98.28874287]
[1765880761833,15.91033257,127.04,127.0,98.07874287]
[1765880762134,0.71,127.03,127.01,0.21]
[1765880762347,0.71,127.03,127.0,98.07874287]
[1765880762537,0.71,127.03,127.0,98.28874287]
[1765880764615,0.71,127.03,127.01,0.21]
[1765880764955,0.71,127.03,127.0,98.07874287]
[1765880765115,0.71,127.03,127.0,98.28874287]
[1765880769674,0.71,127.03,127.0,98.07874287]
[1765880769952,0.71,127.03,127.01,0.21]
[1765880770344,16.61033257,127.04,127.01,0.21]
[1765880770658,13.7470912,127.04,127.01,0.21]
[1765880770835,13.7470912,127.04,127.02,0.21]
[1765880770836,13.0470912,127.04,127.02,0.21]
[1765880771038,13.0470912,127.04,127.03,7.87215618]
[1765880771441,13.7470912,127.04,127.03,7.87215618]
[1765880772638,13.7470912,127.04,127.02,7.87277594]
[1765880773142,4.10916526,127.05,127.03,0.21]
[1765880773340,0.7,127.1,127.05,0.21]
[1765880773547,4.80977794,127.09,127.06,8.83]
[1765880774648,4.80977794,127.09,127.06,16.69975788]
[1765880775329,0.7,127.08,127.06,16.69975788]
[1765880775647,7.67301931,127.09,127.06,16.69975788]
[1765880776048,4.80977794,127.09,127.06,16.69975788]
[1765880776249,7.67301931,127.09,127.06,16.69975788]
[1765880778351,4.80977794,127.09,127.06,36.37550162]
[1765880778952,4.10977794,127.09,127.07,0.21]
[1765880780438,4.10977794,127.09,127.08,7.86905886]
[1765880782259,4.80977794,127.09,127.08,7.86905886]
[1765880782433,6.97301931,127.09,127.07,7.86967813]
[1765880782637,0.7,127.08,127.07,7.86967813]
[1765880783329,7.67301931,127.09,127.07,7.86967813]
[1765880784264,0.7,127.08,127.07,7.86967813]
[1765880784951,7.67301931,127.09,127.07,7.86967813]
[1765880785151,4.80977794,127.09,127.07,7.86967813]
[1765880790382,23.77518059,127.13,127.07,7.86967813]
[1765880790383,0.7,127.15,127.1,0.21]
[1765880790542,0.7,127.15,127.13,7.86596397]
[1765880790852,4.80965197,127.16,127.13,27.7408739]
[1765880791053,2.86324137,127.14,127.12,7.86645201]
[1765880791253,0.7,127.12,127.08,8.62]
[1765880791456,8.62,127.12,127.11,0.21]
[1765880791653,8.62,127.12,127.11,8.07720163]
[1765880792251,9.32,127.14,127.12,7.86609461]
[1765880794279,0.72,127.12,127.1,7.86747613]
[1765880794476,8.62,127.11,127.1,7.86747613]
[1765880794856,9.34,127.11,127.1,7.86747613]
[1765880796073,9.34,127.11,127.09,27.5395389]
[1765880797179,0.72,127.1,127.09,7.86843968]
[1765880797378,13.0470912,127.14,127.1,0.21]
[1765880797546,22.3870912,127.14,127.11,4.67191412]
[1765880798058,22.3870912,127.14,127.11,0.21]
[1765880798253,21.6670912,127.14,127.12,7.86658275]
[1765880798460,8.62,127.13,127.12,7.86658275]
[1765880800053,13.7670912,127.14,127.11,27.53465344]
[1765880800248,8.62,127.13,127.11,27.53465344]
[1765880800649,8.62,127.13,127.11,89.43465344]
[1765880801253,9.34,127.13,127.11,89.43465344]
[1765880801454,8.62,127.13,127.11,89.64465344]
[1765880801968,18.22900532,127.14,127.11,89.64465344]
[1765880802174,8.62,127.13,127.11,89.64465344]
[1765880803573,13.08191412,127.13,127.11,89.64465344]
[1765880803874,13.80191412,127.13,127.11,89.64465344]
[1765880804271,17.50900532,127.14,127.11,89.64465344]
[1765880804575,8.62,127.13,127.11,89.64465344]
[1765880804870,8.62,127.13,127.12,0.21]
[1765880806063,8.62,127.13,127.11,89.64465344]
[1765880806263,13.08191412,127.13,127.11,89.64465344]
[1765880806962,8.62,127.13,127.11,89.64465344]
[1765880807774,9.29156609,127.16,127.12,0.21]
[1765880807981,9.34,127.16,127.13,0.21]
[1765880808361,9.34,127.16,127.14,7.86534528]
[1765880808664,0.72,127.15,127.14,7.86534528]
[1765880810079,4.46191412,127.16,127.14,7.86534528]
[1765880810379,5.18191412,127.17,127.14,27.7387085]
[1765880813586,13.80191412,127.17,127.14,27.7387085]
[1765880813987,5.18191412,127.17,127.14,27.7387085]
[1765880814163,13.08191412,127.17,127.14,27.5287085]
[1765880814485,0.72,127.16,127.14,27.5287085]
[1765880814688,9.34,127.17,127.14,19.87336322]
[1765880815190,0.72,127.17,127.14,19.87336322]
[1765880815479,9.34,127.17,127.14,81.77336322]
[1765880815687,0.72,127.17,127.14,81.77336322]
[1765880815890,9.34,127.17,127.14,81.77336322]
[1765880816483,0.72,127.17,127.14,81.77336322]
[1765880816683,0.72,127.17,127.14,89.6387085]
[1765880817289,0.72,127.16,127.14,89.4287085]
[1765880818796,4.46191412,127.15,127.13,7.86564183]
[1765880818998,5.18191412,127.15,127.14,7.86534528]
[1765880820904,0.72,127.14,127.13,7.86596397]
[1765880821786,4.46191412,127.15,127.13,7.86596397]
[1765880822084,5.18191412,127.15,127.13,7.86596397]
[1765880822276,5.18191412,127.14,127.13,7.86596397]
[1765880822788,0.72,127.13,127.12,7.86635073]
[1765880822989,0.72,127.13,127.11,7.86720163]
[1765880824670,0.69,127.12,127.11,7.86720163]
[1765880824870,13.08191412,127.14,127.11,7.86720163]
[1765880825094,0.69,127.13,127.11,7.86720163]
[1765880826899,7.86379606,127.17,127.11,19.66800409]
[1765880827081,4.46191412,127.14,127.12,0.21]
[1765880827282,0.69,127.14,127.11,19.87800409]
[1765880828772,0.69,127.14,127.11,19.66800409]
[1765880829197,0.69,127.14,127.11,27.53520572]
[1765880830819,4.46191412,127.14,127.11,27.53520572]
[1765880830972,0.69,127.13,127.11,27.53520572]
[1765880831608,0.69,127.13,127.11,27.74520572]
[1765880831970,0.69,127.13,127.11,27.53520572]
[1765880833405,0.69,127.13,127.11,89.43520572]
[1765880833893,0.69,127.13,127.11,27.53520572]
[1765880837613,0.69,127.14,127.11,27.74520572]
[1765880839193,0.69,127.14,127.11,89.64520572]
[1765880841984,0.69,127.12,127.11,7.86720163]
[1765880842379,0.69,127.13,127.11,7.86720163]
[1765880842627,4.46191412,127.14,127.11,27.74520572]
[1765880842793,0.69,127.13,127.11,27.53520572]
[1765880844109,0.69,127.13,127.11,7.86720163]
[1765880845391,0.69,127.12,127.11,7.86720163]
[1765880847315,0.69,127.12,127.1,27.74701019]
[1765880849215,0.69,127.12,127.1,27.53701019]
[1765880849407,0.69,127.12,127.1,27.74701019]
[1765880850517,0.69,127.12,127.1,27.53701019]
[1765880851015,0.69,127.12,127.1,89.43701019]
[1765880852303,0.69,127.12,127.1,69.76782061]
[1765880853218,0.69,127.12,127.1,69.97782061]
[1765880853518,0.69,127.12,127.1,69.76782061]
[1765880854317,4.46191412,127.13,127.1,69.76782061]
[1765880854616,0.67,127.13,127.1,89.64737214]
[1765880855198,0.67,127.13,127.1,89.43737214]
[1765880855623,0.67,127.13,127.1,89.64737214]
[1765880859334,0.67,127.12,127.1,89.64737214]
[1765880861724,0.67,127.12,127.1,89.43737214]
[1765880861914,0.67,127.12,127.1,89.64737214]
[1765880865525,0.67,127.12,127.1,69.76782061]
[1765880868339,0.67,127.12,127.1,69.97782061]
[1765880868638,0.67,127.12,127.1,69.76782061]
[1765880868860,0.67,127.12,127.1,7.86782061]
[1765880870239,0.67,127.12,127.1,8.07782061]
[1765880870934,0.67,127.12,127.1,7.86782061]
[1765880871823,0.67,127.12,127.1,8.07782061]
[1765880872136,0.67,127.12,127.1,7.86782061]
[1765880872440,0.67,127.12,127.1,8.07782061]
[1765880872737,0.67,127.12,127.1,7.86782061]
[1765880875042,4.1122322,127.13,127.11,0.21]
[1765880875341,4.7822322,127.13,127.1,30.60369178]
[1765880875642,4.7822322,127.13,127.1,27.74737214]
[1765880877122,4.7822322,127.13,127.1,30.60369178]
[1765880881044,4.1122322,127.13,127.12,0.21]
[1765880881242,4.1122322,127.13,127.11,0.21]
[1765880882035,4.1122322,127.13,127.12,7.86658275]
[1765880882235,4.7822322,127.13,127.12,7.86658275]
[1765880882947,4.1122322,127.13,127.12,7.86658275]
[1765880883643,4.8222322,127.13,127.12,7.86658275]
[1765880885125,4.1122322,127.13,127.12,7.86658275]
[1765880887351,0.71,127.14,127.12,7.86658275]
[1765880887851,4.82170006,127.14,127.12,7.86658275]
[1765880889655,2.85631964,127.13,127.11,7.86689048]
[1765880889824,0.71,127.11,127.1,7.8675171]
[1765880891035,3.56631964,127.11,127.1,7.8675171]
[1765880891233,2.85631964,127.11,127.09,19.67005265]
[1765880891532,0.71,127.1,127.09,19.67005265]
[1765880893954,0.71,127.1,127.08,7.86905886]
[1765880894457,0.71,127.1,127.08,27.75170601]
[1765880901070,2.85631964,127.11,127.08,27.75170601]
[1765880901269,0.71,127.1,127.08,27.75170601]
[1765880901662,0.71,127.1,127.08,89.65170601]
[1765880905663,0.71,127.11,127.08,89.65170601]
[1765880906972,0.71,127.12,127.09,3.06631964]
[1765880907445,0.71,127.12,127.09,64.96631964]
[1765880907646,0.71,127.12,127.09,62.11]
[1765880908946,0.71,127.12,127.1,27.53737214]
[1765880909505,0.71,127.1,127.04,0.21]
[1765880909648,3.56631964,127.06,127.04,7.8713383]
[1765880909978,0.71,127.04,127.03,7.87196823]
[1765880910370,2.85631964,127.04,127.02,7.87255685]
[1765880910550,0.71,127.02,126.98,19.68738058]
[1765880910752,2.85631964,127.01,126.98,28.30738058]
[1765880910983,0.71,127.0,126.96,22.74684588]
[1765880911281,2.85631964,126.99,126.96,16.69625077]
[1765880911450,0.71,126.98,126.96,8.82]
[1765880911854,0.71,126.98,126.97,7.87582236]
[1765880912056,3.56631964,126.99,126.97,7.87582236]
[1765880912279,0.71,126.98,126.97,7.87582236]
[1765880914682,0.71,126.98,126.96,8.07627499]
[1765880917177,0.67,126.97,126.96,0.2]
[1765880917573,0.67,126.97,126.96,8.07649653]
[1765880919085,13.7170912,126.98,126.96,8.07649653]
[1765880919482,0.67,126.97,126.96,8.07649653]
[1765880920383,0.67,126.97,126.96,0.2]
[1765880920567,5.14363612,126.97,126.96,0.2]
[1765880920886,13.01951231,126.97,126.96,0.2]
[1765880921588,21.63951231,126.97,126.96,0.2]
[1765880922374,30.25951231,126.97,126.96,0.2]
[1765880922880,43.54309335,126.97,126.96,0.2]
[1765880925978,0.67,126.96,126.95,0.2]
[1765880926179,9.61727224,126.96,126.95,0.2]
[1765880926593,5.14363612,126.96,126.95,0.2]
[1765880926890,13.78363612,126.96,126.95,0.2]
[1765880928087,21.66013265,126.96,126.95,0.2]
[1765880928277,34.70722385,126.96,126.95,0.2]
[1765880929089,34.70932498,126.96,126.95,0.2]
[1765880931699,5.14573725,126.97,126.95,0.2]
[1765880931903,18.19282845,126.97,126.95,0.2]
[1765880932288,26.06871309,126.97,126.95,0.2]
[1765880932478,5.14573725,126.96,126.95,0.2]
[1765880933074,0.67,126.96,126.95,0.2]
[1765880933874,26.06871309,126.97,126.95,0.2]
[1765880934903,21.59297584,126.97,126.95,0.2]
[1765880935078,26.06871309,126.97,126.95,0.2]
[1765880935395,21.59297584,126.97,126.95,0.2]
[1765880935698,26.06871309,126.97,126.95,0.2]
[1765880937500,18.19282845,126.97,126.95,0.2]
[1765880939997,26.06879656,126.97,126.95,0.2]
[1765880940381,17.52282845,126.97,126.95,0.41]
[1765880940680,13.0470912,126.97,126.95,0.41]
[1765880941383,13.7170912,126.97,126.95,0.41]
[1765880941601,13.7170912,126.97,126.95,0.2]
[1765880942299,13.0470912,126.97,126.95,8.28706605]
[1765880942483,13.0470912,126.97,126.95,0.41]
[1765880943598,13.7670912,126.97,126.95,0.2]
[1765880944703,26.11882303,126.97,126.95,0.2]
[1765880946881,21.64308578,126.97,126.95,0.2]
[1765880947082,13.0470912,126.97,126.95,0.41]
[1765880947775,13.7670912,126.97,126.95,0.41]
[1765880948186,25.76075553,126.97,126.95,0.2]
[1765880950301,4.11758906,126.97,126.96,0.21]
[1765880951209,4.11758906,126.97,126.96,4.68573725]
[1765880951505,9.36,127.0,126.97,0.21]
[1765880951705,13.47665199,127.0,126.97,4.68573725]
[1765880951910,26.52374319,127.0,126.97,8.08572504]
[1765880952103,34.39778831,127.0,126.97,12.56146229]
[1765880954593,34.39778831,127.0,126.97,8.08572504]
[1765880959020,26.52374319,127.0,126.98,0.21]
[1765880959218,17.16374319,127.0,126.98,0.21]
[1765880959699,17.88374319,127.0,126.97,8.08572504]
[1765880959903,17.88374319,127.0,126.97,12.56146229]
[1765880960105,17.88374319,127.0,126.97,8.08572504]
[1765880960404,0.72,126.98,126.96,7.87623136]
[1765880961208,38.15379717,127.0,126.96,27.77747269]
[1765880961426,0.72,126.99,126.96,27.77747269]
[1765880962121,0.72,126.99,126.96,8.08623136]
[1765880962615,0.72,126.99,126.97,0.21]
[1765880962790,0.72,126.99,126.96,8.08623136]
[1765880964891,0.72,126.98,126.96,7.87623136]
[1765880967121,0.72,126.98,126.96,8.08623136]
[1765880967526,0.72,126.98,126.96,7.87623136]
[1765880968321,17.16374319,127.0,126.97,0.21]
[1765880968512,17.88374319,127.0,126.98,7.87525594]
[1765880970121,17.88374319,127.0,126.97,8.08554416]
[1765880970424,0.72,126.99,126.97,7.87554416]
[1765880973826,0.72,126.99,126.96,27.56773786]
[1765880974028,0.72,126.99,126.96,27.77773786]
[1765880974414,0.72,126.99,126.96,27.56773786]
[1765880974732,0.72,126.99,126.96,27.77773786]
[1765880978743,0.7,126.98,126.96,7.87649653]
[1765880985621,0.7,126.98,126.95,78.61679885]
[1765880985810,0.7,126.98,126.95,78.82679885]
[1765880986013,0.7,126.98,126.95,16.71679885]
[1765880986245,0.7,126.98,126.95,16.92679885]
[1765880987751,0.7,126.97,126.95,16.92679885]
[1765880988447,4.81707408,126.98,126.95,16.92679885]
[1765880992045,4.11707408,126.98,126.95,16.92679885]
[1765880992232,4.81707408,126.98,126.95,16.92679885]
[1765880996353,0.7,126.97,126.95,16.71679885]
[1765880996822,0.7,126.97,126.95,16.92679885]
[1765880998625,4.11707408,126.98,126.95,16.92679885]
[1765880998828,4.81707408,126.98,126.95,16.92679885]
[1765880999320,0.7,126.97,126.95,16.92679885]
[1765881000247,4.11707408,126.98,126.95,36.61959128]
[1765881000457,4.81707408,126.98,126.95,36.61959128]
[1765881000756,0.7,126.97,126.95,16.71679885]
[1765881001559,4.11707408,126.98,126.95,16.71679885]
[1765881001858,4.81707408,126.98,126.95,16.92679885]
[1765881002059,4.11707408,126.98,126.97,11.88267252]
[1765881002228,0.7,127.04,127.0,0.21]
[1765881002431,0.7,127.03,127.0,11.7127276]
[1765881002631,4.11528891,127.03,127.01,0.21]
[1765881002865,4.81528891,127.03,127.01,0.21]
[1765881003942,4.11528891,127.03,127.01,0.21]
[1765881004340,17.16238011,127.03,127.02,7.87277594]
[1765881004952,4.11528891,127.03,127.02,7.87277594]
[1765881007982,4.11528891,127.03,127.02,8.08277594]
[1765881008271,4.11528891,127.03,127.02,7.87277594]
[1765881008842,0.71,127.02,127.0,8.64]
[1765881009043,13.0470912,127.01,126.99,7.87440366]
[1765881009282,0.71,127.0,126.98,16.49496993]
[1765881010767,0.71,126.98,126.97,7.87556272]
[1765881012261,0.71,126.98,126.96,27.56662032]
[1765881013993,13.7570912,126.99,126.96,27.77662032]
[1765881014162,0.71,127.0,126.97,0.21]
[1765881014363,0.71,127.0,126.98,7.87525594]
[1765881015578,13.7570912,127.01,126.98,27.7733958]
[1765881016087,13.0470912,127.01,126.98,7.87525594]
[1765881016380,13.7570912,127.01,126.98,7.87525594]
[1765881016580,13.0470912,127.01,126.98,7.87525594]
[1765881016884,0.71,127.0,126.98,7.87525594]
[1765881017176,3.5727276,127.0,126.97,16.51566885]
[1765881017382,0.71,126.99,126.97,16.51566885]
[1765881018271,0.71,127.0,126.97,16.72566885]
[1765881018869,0.71,127.0,126.97,16.51566885]
[1765881019879,8.58420698,127.0,126.97,8.64]
[1765881020088,0.71,126.98,126.96,7.87619727]
[1765881020275,0.71,126.98,126.97,7.87587619]
[1765881021363,0.71,126.98,126.96,7.87649653]
[1765881024677,0.71,126.97,126.95,16.71682964]
[1765881032977,4.83708336,126.98,126.95,36.61962207]
[1765881033900,4.83708336,126.98,126.95,39.48234967]
[1765881035094,4.83708336,126.98,126.95,101.38234967]
[1765881035484,4.11708336,126.98,126.97,3.0727276]
[1765881035677,13.7270912,127.02,126.98,0.21]
[1765881035881,4.11589616,127.02,127.0,3.0727276]
[1765881037103,4.11589616,127.02,127.0,0.21]
[1765881037810,4.11589616,127.02,127.01,7.87339579]
[1765881039007,4.11589616,127.02,127.01,19.58612339]
[1765881039200,0.68,127.05,127.02,0.21]
[1765881039403,4.79485328,127.05,127.02,0.21]
[1765881039605,0.68,127.04,127.01,40.87411301]
[1765881039785,0.68,127.04,127.01,16.51339579]
[1765881041015,0.68,127.03,127.01,16.51339579]
[1765881041306,0.68,127.03,127.01,7.87339579]
[1765881041597,0.68,127.01,126.99,16.51429303]
[1765881043314,0.68,127.01,126.99,7.87429303]
[1765881043996,0.68,127.01,126.98,7.87525594]
[1765881046784,0.68,127.0,126.98,7.87525594]
[1765881060814,0.68,127.0,126.98,27.7733958]
[1765881061019,0.68,127.02,126.99,0.21]
[1765881062022,0.68,127.02,126.98,32.24062354]
[1765881064315,4.46722774,127.02,126.98,27.5633958]
[1765881064517,0.68,127.01,126.98,27.7733958]
[1765881064920,0.68,127.01,126.98,93.93062354]
[1765881065116,0.68,127.02,126.99,0.21]
[1765881065301,0.68,127.02,126.99,13.08992723]
[1765881065506,0.68,127.02,126.99,13.29992723]
[1765881065925,0.68,127.02,127.0,7.87401574]
[1765881066313,0.68,127.02,127.0,8.08401574]
[1765881066610,0.68,127.02,127.0,7.87401574]
[1765881069434,0.68,127.02,127.0,7.37401574]
[1765881069836,4.79571999,127.02,127.0,7.37401574]
[1765881071143,0.68,127.01,127.0,7.37401574]
[1765881072150,4.79571999,127.02,127.0,7.37401574]
[1765881073844,4.11571999,127.02,127.0,7.37401574]
[1765881074072,4.11571999,127.02,127.0,31.73898234]
[1765881076227,4.46992723,127.07,127.01,13.08992723]
[1765881076433,0.68,127.05,127.02,4.67992723]
[1765881076653,4.11481389,127.04,127.02,4.67992723]
[1765881078260,4.11481389,127.04,127.03,7.87215618]
[1765881081538,0.68,127.08,127.04,0.21]
[1765881081869,0.68,127.08,127.05,4.46992723]
[1765881081870,4.79415832,127.07,127.05,4.46992723]
[1765881083366,4.79415832,127.07,127.05,12.34063611]
[1765881083860,4.79415832,127.07,127.04,7.87127071]
[1765881083861,0.68,127.06,127.04,7.87127071]
[1765881088875,0.68,127.06,127.04,12.34119794]
[1765881089552,4.79415832,127.07,127.04,32.23003924]
[1765881089744,4.79415832,127.07,127.05,4.46992723]
[1765881090479,4.79415832,127.07,127.05,12.34054024]
[1765881091276,4.79415832,127.07,127.05,7.87061301]
[1765881092063,0.68,127.06,127.04,69.77126693]
[1765881092378,0.68,127.05,127.04,69.77126693]
[1765881092580,0.68,127.05,127.04,7.87126693]
[1765881093552,0.68,127.05,127.03,7.87215618]
[1765881097487,0.68,127.05,127.03,69.77215618]
[1765881100458,13.0470912,127.04,127.0,81.58399663]
[1765881100663,0.7,127.03,127.0,7.8737083]
[1765881101084,0.7,127.02,126.99,7.87433067]
[1765881102164,0.7,127.01,126.99,7.87433067]
[1765881103085,10.73339161,127.03,126.99,7.87433067]
[1765881103286,0.7,127.02,126.99,10.94531341]
[1765881103767,0.7,127.02,126.99,7.87433067]
[1765881106893,0.7,127.02,126.99,10.73531341]
[1765881107286,0.7,127.02,126.99,7.87433067]
[1765881108617,0.7,127.02,126.99,10.94531341]
[1765881109293,0.7,127.02,126.99,10.73531341]
[1765881109701,0.7,127.02,126.99,10.94531341]
[1765881111117,0.7,127.02,126.99,10.73531341]
[1765881115414,0.7,127.02,126.99,7.87433067]
[1765881119627,0.7,127.02,126.99,8.08433067]
[1765881120320,13.0470912,127.02,127.01,0.21]
[1765881120629,4.81578489,127.03,127.01,0.21]
[1765881121119,4.11578489,127.03,127.01,0.21]
[1765881121327,4.11578489,127.03,127.02,0.21]
[1765881121535,0.7,127.05,127.03,7.87215618]
[1765881121834,4.11482548,127.05,127.03,7.87215618]
[1765881122138,0.7,127.04,127.03,7.87215618]
[1765881123615,4.79482548,127.05,127.03,7.87215618]
[1765881125117,4.79482548,127.05,127.03,8.08215618]
[1765881125314,4.11482548,127.05,127.03,8.08215618]
[1765881126045,4.79482548,127.05,127.03,7.87215618]
[1765881126331,4.11482548,127.05,127.03,8.08215618]
[1765881126537,4.79482548,127.05,127.03,7.87215618]
[1765881130332,4.11482548,127.05,127.03,8.08215618]
[1765881130537,4.79482548,127.05,127.03,8.08215618]
[1765881130741,4.79482548,127.05,127.03,7.87215618]
[1765881136738,0.68,127.04,127.03,7.87215618]
[1765881138843,4.11482548,127.05,127.03,7.87215618]
[1765881139046,4.79482548,127.05,127.03,7.87215618]
[1765881140041,4.79482548,127.05,127.03,8.08215618]
[1765881140251,4.11482548,127.05,127.04,0.21]
[1765881140946,4.11482548,127.05,127.04,7.87153652]